bitfinex/quotes_SOLUSD_20251126
["timestamp","ask_amount","ask_price","bid_price","bid_amount"]
[1764168908751,18.30886399,136.53,136.49,13.14301218]
[1764168908947,1.99999999,136.52,136.49,13.14301218]
[1764168909163,1.99999999,136.53,136.5,13.14301218]
[1764168909378,25.11880892,136.51,136.42,25.65543997]
[1764168909564,1.99999999,136.47,136.44,13.14301218]
[1764168909881,1.99999999,136.48,136.45,13.14301218]
[1764168910377,1.99999999,136.44,136.43,13.14301218]
[1764168910680,1.99999999,136.48,136.44,7.32922896]
[1764168910856,18.30886399,136.48,136.46,13.14301218]
[1764168911053,1.99999999,136.48,136.46,13.14301218]
[1764168911260,1.99999999,136.5,136.47,13.14301218]
[1764168911457,18.30886399,136.51,136.48,13.14301218]
[1764168911773,1.99999999,136.5,136.44,25.65230137]
[1764168911957,1.99999999,136.49,136.47,13.14301218]
[1764168912352,1.99999999,136.49,136.45,13.14301218]
[1764168912558,1.99999999,136.47,136.44,7.32922896]
[1764168912800,1.99999999,136.46,136.42,11.29512114]
[1764168912965,1.99999999,136.43,136.4,11.29512114]
[1764168913156,1.99999999,136.41,136.39,11.29512114]
[1764168913380,1.99999999,136.45,136.4,11.29512114]
[1764168913567,25.66506605,136.46,136.4,11.29512114]
[1764168913767,11.29512114,136.44,136.37,7.33299112]
[1764168913987,14.36994491,136.46,136.37,7.33299112]
[1764168914158,1.99999999,136.45,136.37,25.66546893]
[1764168914363,1.99999999,136.41,136.37,25.66546893]
[1764168914568,5.53999999,136.47,136.4,11.29512114]
[1764168914774,1.99999999,136.47,136.44,11.29512114]
[1764168914976,1.99999999,136.48,136.46,11.29512114]
[1764168915178,14.83512114,136.51,136.46,11.29512114]
[1764168915179,1.99999999,136.47,136.46,11.29512114]
[1764168915461,1.99999999,136.49,136.41,0.28432314]
[1764168915664,1.99999999,136.5,136.47,11.29512114]
[1764168915884,1.99999999,136.5,136.41,0.28432314]
[1764168916090,1.99999999,136.5,136.47,11.29512114]
[1764168916390,1.99999999,136.5,136.41,0.28432314]
[1764168916691,19.848864,136.52,136.45,11.29512114]
[1764168916692,1.99999999,136.47,136.45,11.29512114]
[1764168916870,1.99999999,136.46,136.42,7.33030347]
[1764168917073,1.99999999,136.49,136.45,11.29512114]
[1764168917274,1.99999999,136.5,136.46,11.29512114]
[1764168917483,1.99999999,136.5,136.42,25.65606215]
[1764168917683,1.99999999,136.5,136.46,11.29512114]
[1764168918070,1.99999999,136.49,136.45,11.29512114]
[1764168918392,1.99999999,136.44,136.41,11.29512114]
[1764168918767,10.86827511,136.46,136.35,25.66923359]
[1764168918966,1.99999999,136.43,136.4,11.29512114]
[1764168919170,1.99999999,136.41,136.35,25.66923359]
[1764168919475,1.99999999,136.46,136.4,11.29512114]
[1764168919674,1.99999999,136.46,136.42,11.29512114]
[1764168919880,1.99999999,136.38,136.26,0.68]
[1764168920192,13.29512113,136.36,136.27,25.68430321]
[1764168920393,1.99999999,136.33,136.29,11.29512114]
[1764168920597,1.99999999,136.3,136.27,25.68430321]
[1764168920765,1.99999999,136.32,136.29,11.29512114]
[1764168920969,1.99999999,136.33,136.29,11.29512114]
[1764168921183,1.99999999,136.32,136.29,11.29512114]
[1764168921386,1.99999999,136.32,136.28,25.68192309]
[1764168921603,13.29512113,136.32,136.23,36.70108089]
[1764168921788,1.99999999,136.32,136.29,11.29512114]
[1764168921982,1.99999999,136.32,136.28,11.29512114]
[1764168922289,1.99999999,136.32,136.24,62.38966375]
[1764168922491,1.99999999,136.3,136.29,11.29512114]
[1764168922667,1.99999999,136.33,136.29,7.47513798]
[1764168923003,1.99999999,136.37,136.32,7.47513798]
[1764168923291,57.47513798,136.48,136.32,7.47513798]
[1764168923292,52.0,136.53,136.37,8.80994492]
[1764168923509,0.66,136.6,136.4,23.78400198]
[1764168923672,0.66,136.73,136.59,7.47513798]
[1764168923876,0.66,136.72,136.61,8.80994492]
[1764168924108,55.88737545,136.87,136.6,4.24]
[1764168924109,50.0,136.86,136.62,5.55999999]
[1764168924292,0.66,136.86,136.68,8.95210649]
[1764168924590,0.66,136.86,136.67,16.308864]
[1764168924591,5.88737545,136.87,136.71,50.0]
[1764168924792,0.66,136.86,136.71,62.17540778]
[1764168924990,11.23164727,136.83,136.75,11.23164727]
[1764168925204,11.23164727,136.77,136.58,1.99999999]
[1764168925497,11.23164727,136.69,136.59,25.6241306]
[1764168925688,1.99999999,136.78,136.59,26.3041306]
[1764168925689,16.308864,136.71,136.59,26.3041306]
[1764168925998,11.23164727,136.7,136.62,11.23164727]
[1764168926173,11.23164727,136.68,136.61,11.23164727]
[1764168926589,3.58,136.72,136.62,11.23164727]
[1764168926875,16.308864,136.72,136.63,25.61662884]
[1764168927076,3.56,136.81,136.71,11.23164727]
[1764168927407,11.89164727,136.84,136.73,0.28432314]
[1764168927606,11.23164727,136.78,136.71,11.23164727]
[1764168927816,11.23164727,136.77,136.7,11.23164727]
[1764168928003,11.23164727,136.76,136.69,31.78051127]
[1764168928514,11.23164727,136.78,136.71,11.23164727]
[1764168928722,11.23164727,136.78,136.64,1.99999999]
[1764168928723,11.23164727,136.72,136.65,0.68]
[1764168929005,11.23164727,136.73,136.66,7.31743011]
[1764168929192,11.23164727,136.81,136.69,25.11880892]
[1764168929379,11.23164727,136.78,136.72,11.23164727]
[1764168929581,11.23164727,136.78,136.71,11.23164727]
[1764168929785,11.23164727,136.76,136.69,11.23164727]
[1764168929998,11.23164727,136.73,136.67,11.23164727]
[1764168930206,11.23164727,136.71,136.66,7.31743011]
[1764168930592,11.23164727,136.72,136.66,25.6110054]
[1764168930903,11.23164727,136.76,136.69,18.54747139]
[1764168931200,11.23164727,136.72,136.68,7.31634684]
[1764168931877,16.968864,136.76,136.68,7.31634684]
[1764168931878,0.66,136.81,136.72,8.80994492]
[1764168932079,1.99999999,136.98,136.79,16.308864]
[1764168932286,11.23164727,137.1,136.76,0.28432314]
[1764168932287,7.29927007,137.0,136.8,3.58]
[1764168932578,51.99999999,137.03,136.8,3.58]
[1764168932781,7.30135589,136.97,136.86,11.23164727]
[1764168932994,7.30135589,136.97,136.8,3.58]
[1764168932995,11.23164727,136.87,136.8,11.91164727]
[1764168933187,11.23164727,136.86,136.79,18.27532458]
[1764168933398,11.23164727,136.86,136.79,29.50697185]
[1764168933599,3.58,136.91,136.81,11.23164727]
[1764168933795,11.23164727,136.88,136.81,11.23164727]
[1764168933995,11.23164727,136.88,136.81,11.91164727]
[1764168934301,11.23164727,136.87,136.81,0.68]
[1764168934601,16.308864,136.88,136.81,0.68]
[1764168934804,11.23164727,136.84,136.77,0.68]
[1764168934988,11.23164727,136.84,136.77,12.05380884]
[1764168935308,11.23164727,136.85,136.78,11.91164727]
[1764168935909,11.23164727,136.85,136.79,11.23164727]
[1764168936115,11.23164727,136.89,136.82,11.23164727]
[1764168936321,11.23164727,136.9,136.84,11.23164727]
[1764168936601,0.66,136.91,136.84,11.23164727]
[1764168936781,11.23164727,136.89,136.84,7.30780473]
[1764168937201,16.308864,136.9,136.84,7.30780473]
[1764168937408,0.66,137.1,136.96,16.308864]
[1764168937585,0.66,137.18,137.08,11.23164727]
[1764168937795,11.23164727,137.15,137.03,0.28432314]
[1764168938125,50.0,137.27,137.08,0.28432314]
[1764168938334,0.66,137.21,137.13,16.59318714]
[1764168938609,0.66,137.19,137.11,0.28432314]
[1764168938812,11.23164727,137.16,137.09,11.91164727]
[1764168939111,11.23164727,137.16,137.06,3.6]
[1764168939112,26.1721,137.19,137.02,11.23164727]
[1764168939314,11.23164727,137.11,137.04,11.51597041]
[1764168939614,16.308864,137.16,137.04,9.09426806]
[1764168939810,11.23164727,137.1,137.04,0.28432314]
[1764168940192,11.23164727,137.09,137.03,0.68]
[1764168940417,8.95210649,137.15,137.03,9.48994492]
[1764168940418,0.66,137.13,137.03,9.48994492]
[1764168940596,11.23164727,137.09,137.03,0.96432314]
[1764168940791,11.23164727,137.07,137.03,7.29737782]
[1764168941012,11.23164727,137.08,137.03,7.29737782]
[1764168941318,11.23164727,137.06,137.01,7.29835347]
[1764168941495,11.23164727,137.05,137.01,7.29835347]
[1764168941689,11.23164727,137.07,137.01,25.54519676]
[1764168941886,0.66,137.24,137.09,16.308864]
[1764168942096,1.08122894,137.31,137.18,11.23164727]
[1764168942295,0.66,137.3,137.18,11.23164727]
[1764168942493,2.65999999,137.3,137.17,0.68]
[1764168942714,4.02487981,137.29,137.14,0.28432314]
[1764168942895,11.23164727,137.16,137.12,7.29277965]
[1764168943089,11.23164727,137.13,137.09,0.68]
[1764168943301,0.66,137.18,137.09,0.68]
[1764168943302,11.23164727,137.15,137.1,0.14216157]
[1764168943616,11.23164727,137.14,137.09,7.97422839]
[1764168943812,11.23164727,137.13,137.09,7.97422839]
[1764168944189,11.23164727,137.1,137.05,18.96039389]
[1764168944513,11.23164727,137.09,137.06,7.29607471]
[1764168944822,11.23164727,137.07,137.03,18.24343251]
[1764168944992,0.69,137.13,137.03,7.29767204]
[1764168945197,16.308864,137.12,137.04,0.72]
[1764168945393,16.308864,137.15,137.06,11.23164727]
[1764168945595,11.23164727,137.1,137.04,28.26051127]
[1764168945818,9.49994492,137.14,137.04,0.72]
[1764168945819,11.23164727,137.09,137.04,0.72]
[1764168946002,11.23164727,137.09,137.04,0.86216157]
[1764168946209,0.69,137.13,137.04,0.86216157]
[1764168946411,0.69,137.13,137.03,53.08236341]
[1764168946412,11.23164727,137.05,137.01,7.29827055]
[1764168946622,9.09426806,137.1,137.01,7.29827055]
[1764168946623,11.23164727,137.04,137.01,7.29827055]
[1764168946810,11.23164727,137.04,137.0,7.29927007]
[1764168947336,11.23164727,137.05,137.0,25.54744525]
[1764168947541,11.23164727,137.05,137.01,0.72]
[1764168947831,11.23164727,137.03,137.0,8.01927007]
[1764168948329,11.23164727,137.03,137.0,7.29927007]
[1764168948830,8.80994492,137.07,136.99,25.54920041]
[1764168948831,11.23164727,137.04,136.99,25.54920041]
[1764168949200,11.23164727,137.02,136.99,25.54920041]
[1764168949622,11.23164727,137.03,136.99,25.54920041]
[1764168950203,11.23164727,137.02,136.99,7.2998029]
[1764168950394,11.23164727,137.03,136.97,16.11039386]
[1764168950722,11.23164727,137.03,136.98,0.28432314]
[1764168951099,7.29440156,137.1,137.0,0.28432314]
[1764168951294,7.29440156,137.1,136.99,25.54931016]
[1764168951295,11.23164727,137.04,136.99,25.54931016]
[1764168951607,16.308864,137.07,136.99,7.2998029]
[1764168951608,11.23164727,137.01,136.99,7.2998029]
[1764168951813,11.23164727,137.03,136.99,7.2998029]
[1764168952008,11.23164727,137.07,137.0,21.04591533]
[1764168952207,8.80994492,137.12,137.02,9.09426806]
[1764168952416,11.23164727,137.08,137.02,1.00432314]
[1764168952616,11.23164727,137.07,137.02,1.00432314]
[1764168953118,11.23164727,137.08,137.03,25.54185214]
[1764168953326,11.23164727,137.08,137.03,26.26185214]
[1764168953512,11.23164727,137.08,137.04,0.72]
[1764168953718,0.42592253,137.28,137.14,16.308864]
[1764168953914,0.69,137.27,137.15,3.58]
[1764168954116,52.19999999,137.38,137.14,16.308864]
[1764168954117,0.69,137.36,137.16,0.72]
[1764168954315,3.6,137.35,137.16,0.72]
[1764168954506,0.69,137.36,137.19,11.23164727]
[1764168954724,11.23164727,137.24,137.2,0.28432314]
[1764168954934,1.99999999,137.33,137.16,0.72]
[1764168954935,11.23164727,137.21,137.16,0.72]
[1764168955107,11.23164727,137.2,137.16,0.72]
[1764168955304,11.23164727,137.19,137.16,7.29051466]
[1764168955520,11.23164727,137.23,137.17,9.09426806]
[1764168955724,11.23164727,137.22,137.17,9.09426806]
[1764168955929,11.23164727,137.22,137.17,0.28432314]
[1764168956101,11.23164727,137.22,137.17,1.00432314]
[1764168956625,7.97544368,137.26,137.17,8.80994492]
[1764168956812,11.23164727,137.23,137.18,1.00432314]
[1764168957013,11.23164727,137.2,137.16,7.29051466]
[1764168957407,11.23164727,137.2,137.15,25.80273147]
[1764168958026,11.23164727,137.18,137.13,7.29190109]
[1764168958208,11.23164727,137.19,137.14,8.80994492]
[1764168958525,11.23164727,137.17,137.13,25.5227769]
[1764168958726,11.23164727,137.16,137.13,7.29190109]
[1764168958911,0.69,137.21,137.1,8.01388532]
[1764168959105,1.99999999,137.34,137.11,0.72]
[1764168959305,0.69,137.34,137.22,11.23164727]
[1764168959603,0.69,137.36,137.28,16.308864]
[1764168959800,11.23164727,137.37,137.3,11.23164727]
[1764168959998,11.23164727,137.31,137.26,0.72]
[1764168960200,11.23164727,137.31,137.22,18.21891852]
[1764168960201,27.57999999,137.35,137.18,8.80994492]
[1764168960401,11.23164727,137.23,137.19,0.14216157]
[1764168960610,11.23164727,137.21,137.15,0.72]
[1764168960831,11.23164727,137.24,137.16,28.26051127]
[1764168961036,11.23164727,137.21,137.16,0.72]
[1764168961204,16.308864,137.23,137.16,0.72]
[1764168961404,11.23164727,137.19,137.14,7.29181857]
[1764168961625,11.23164727,137.17,137.14,7.29181857]
[1764168961839,11.23164727,137.18,137.14,7.29181857]
[1764168962009,11.23164727,137.17,137.14,7.29181857]
[1764168962213,11.23164727,137.17,137.13,8.01222378]
[1764168962425,11.23164727,137.16,137.13,7.29222378]
[1764168963147,16.308864,137.2,137.13,25.52309959]
[1764168963436,11.23164727,137.19,137.15,7.29128691]
[1764168963801,0.69,137.31,137.19,8.80994492]
[1764168964141,7.27982679,137.37,137.23,36.35045619]
[1764168964348,0.69,137.36,137.24,3.6]
[1764168964637,11.23164727,137.33,137.24,0.72]
[1764168964810,0.69,137.37,137.27,0.28432314]
[1764168964811,11.23164727,137.32,137.27,0.28432314]
[1764168965213,11.23164727,137.33,137.27,1.00432314]
[1764168965431,11.23164727,137.33,137.28,7.28438228]
[1764168965730,30.80764473,137.38,137.28,7.28438228]
[1764168965731,11.23164727,137.31,137.28,7.28438228]
[1764168966802,11.23164727,137.3,137.24,18.8859529]
[1764168967010,11.23164727,137.31,137.25,51.57404279]
[1764168967204,11.23164727,137.32,137.25,62.80569006]
[1764168967515,0.68,137.35,137.24,16.308864]
[1764168967835,16.308864,137.33,137.26,9.76426806]
[1764168968008,11.23164727,137.27,137.21,26.90713533]
[1764168968221,25.11880892,137.28,137.19,7.28916101]
[1764168968521,11.23164727,137.25,137.19,7.95916101]
[1764168968706,11.23164727,137.24,137.19,26.18206355]
[1764168969214,11.23164727,137.26,137.21,8.80994492]
[1764168969407,38.41730964,137.37,137.21,8.80994492]
[1764168969408,0.68,137.32,137.25,0.28432314]
[1764168969633,11.23164727,137.32,137.27,0.28432314]
[1764168969936,0.68,137.36,137.26,14.81164727]
[1764168970112,0.68,137.36,137.27,12.18597041]
[1764168970311,11.23164727,137.32,137.27,0.67]
[1764168970506,3.58,137.34,137.24,8.95210649]
[1764168970815,11.23164727,137.26,137.23,7.28703636]
[1764168971329,11.23164727,137.24,137.22,7.28747548]
[1764168971529,11.23164727,137.24,137.19,0.67]
[1764168971732,16.308864,137.26,137.19,0.67]
[1764168971905,16.308864,137.25,137.19,0.67]
[1764168972316,11.23164727,137.24,137.19,0.67]
[1764168972516,11.23164727,137.23,137.17,8.80994492]
[1764168972918,11.23164727,137.23,137.17,9.47994492]
[1764168973539,11.23164727,137.23,137.18,25.5139233]
[1764168973739,16.308864,137.27,137.19,9.09426806]
[1764168974039,11.23164727,137.23,137.19,9.09426806]
[1764168974222,11.23164727,137.22,137.18,25.5139233]
[1764168974407,11.23164727,137.25,137.19,9.49994492]
[1764168974613,12.96468381,137.27,137.21,8.80994492]
[1764168974814,12.96468381,137.28,137.22,14.66776369]
[1764168975042,12.96468381,137.31,137.26,0.28432314]
[1764168975413,12.96468381,137.31,137.29,7.2838517]
[1764168975719,16.308864,137.27,137.23,0.28432314]
[1764168975929,12.96468381,137.24,137.21,11.55794861]
[1764168976130,0.66,137.23,137.06,7.29607471]
[1764168976340,12.96468381,137.17,137.13,0.69]
[1764168976518,16.308864,137.2,137.13,0.69]
[1764168976837,12.96468381,137.17,137.13,0.69]
[1764168977030,12.96468381,137.16,137.1,0.69]
[1764168977229,12.96468381,137.15,137.11,8.80994492]
[1764168977434,12.96468381,137.15,137.1,0.69]
[1764168977638,12.96468381,137.15,137.11,26.21694915]
[1764168977825,23.5979768,137.2,137.07,0.72955424]
[1764168977826,12.96468381,137.12,137.07,0.72955424]
[1764168978024,12.96468381,137.08,137.03,0.69]
[1764168978341,12.96468381,137.07,137.03,0.69]
[1764168978638,12.96468381,137.06,137.03,0.69]
[1764168979024,12.96468381,137.04,137.02,7.29820464]
[1764168979616,16.968864,137.1,137.0,25.54690617]
[1764168979818,12.96468381,137.05,137.01,0.69]
[1764168980231,1.99999999,137.19,137.03,0.28432314]
[1764168980447,12.96468381,137.06,137.01,0.83216157]
[1764168980641,12.96468381,137.05,137.01,0.69]
[1764168981134,12.96468381,137.05,137.01,0.83216157]
[1764168981742,12.96468381,137.05,137.02,7.29820464]
[1764168982120,12.96468381,137.11,137.05,9.09426806]
[1764168982340,12.96468381,137.09,137.05,0.28432314]
[1764168982640,12.96468381,137.1,137.05,0.83216157]
[1764168982831,12.96468381,137.09,137.05,0.83216157]
[1764168983364,1.99999999,137.23,137.06,12.96468381]
[1764168983527,12.96468381,137.12,137.06,12.96468381]
[1764168983845,12.96468381,137.11,137.06,25.53626148]
[1764168984326,12.96468381,137.11,137.06,26.22626148]
[1764168984730,12.96468381,137.09,137.05,7.29645028]
[1764168984939,4.22,137.18,137.06,30.24057796]
[1764168985242,12.96468381,137.12,137.07,8.95210649]
[1764168985423,12.96468381,137.08,137.05,7.29645028]
[1764168985624,12.96468381,137.06,137.02,7.29770409]
[1764168985941,12.96468381,137.05,137.01,7.29873731]
[1764168986449,12.96468381,137.05,137.01,7.98873731]
[1764168986955,12.96468381,137.05,137.02,0.69]
[1764168987127,12.96468381,137.06,137.02,0.97432314]
[1764168987532,12.96468381,137.05,137.01,25.5455806]
[1764168987922,0.66,137.09,137.01,26.2355806]
[1764168987923,12.96468381,137.06,137.01,26.2355806]
[1764168988139,12.96468381,137.05,137.01,26.2355806]
[1764168989551,12.96468381,137.06,137.02,0.97432314]
[1764168989727,12.96468381,137.06,137.01,25.5455806]
[1764168990042,0.66,137.09,137.01,25.5455806]
[1764168990043,12.96468381,137.04,137.01,25.5455806]
[1764168990344,12.96468381,137.03,137.01,7.29873731]
[1764168991223,12.96468381,137.03,137.0,7.29909788]
[1764168991422,12.96468381,137.01,136.99,3.56]
[1764168991621,12.36994492,137.05,136.94,4.25]
[1764168991844,12.96468381,137.01,136.95,25.55674952]
[1764168992022,12.96468381,137.0,136.95,42.55561352]
[1764168992223,12.96468381,137.0,136.95,26.24674952]
[1764168992436,12.96468381,136.98,136.96,3.56]
[1764168992944,0.66,137.07,136.97,0.83216157]
[1764168993245,16.308864,137.04,136.97,0.83216157]
[1764168993549,16.308864,137.04,136.96,3.56]
[1764168993550,12.96468381,137.01,136.96,3.56]
[1764168993840,12.96468381,137.0,136.96,3.56]
[1764168994043,12.96468381,137.0,136.97,25.5530408]
[1764168994242,12.96468381,137.01,136.97,25.5530408]
[1764168994468,12.96468381,137.0,136.97,25.5530408]
[1764168995062,12.96468381,137.0,136.97,7.3008688]
[1764168995422,12.96468381,136.99,136.97,7.3008688]
[1764168995645,12.96468381,136.98,136.9,0.69]
[1764168995842,12.96468381,136.98,136.92,7.30353491]
[1764168995843,12.96468381,136.94,136.92,7.30353491]
[1764168996024,12.96468381,136.94,136.91,25.66423927]
[1764168996223,12.96468381,136.94,136.91,26.35423927]
[1764168996424,12.96468381,136.95,136.91,26.35423927]
[1764168997246,12.96468381,136.96,136.91,25.66423927]
[1764168997446,12.96468381,136.99,136.92,13.79684538]
[1764168997757,16.308864,137.0,136.94,0.14216157]
[1764168997940,12.96468381,136.99,136.95,25.55677254]
[1764168998252,12.96468381,136.98,136.95,25.55677254]
[1764168999246,12.96468381,137.0,136.95,26.24677254]
[1764168999550,12.96468381,136.99,136.95,26.24677254]
[1764168999728,12.96468381,136.98,136.94,10.84231147]
[1764168999932,12.96468381,136.99,136.94,29.09848205]
[1764169000250,12.96468381,136.99,136.94,29.78848205]
[1764169000452,12.96468381,136.99,136.94,25.55848205]
[1764169000750,12.96468381,137.0,136.95,0.69]
[1764169000947,16.50468381,137.01,136.95,0.97432314]
[1764169001150,16.50468381,137.01,136.95,13.93900695]
[1764169001452,7.29724098,137.04,136.99,0.28432314]
[1764169001453,12.96468381,137.04,136.99,0.28432314]
[1764169001631,12.96468381,137.03,137.0,3.54]
[1764169002047,13.62468381,137.02,136.98,7.30033581]
[1764169002351,12.96468381,137.01,136.98,7.30033581]
[1764169002554,12.96468381,137.0,136.98,7.30033581]
[1764169003941,12.96468381,137.01,136.98,7.30033581]
[1764169004249,11.49719241,137.04,136.97,18.25135956]
[1764169004250,20.568864,137.04,136.97,18.25135956]
[1764169004465,12.96468381,137.01,136.96,7.30140186]
[1764169004757,19.848864,137.04,136.97,0.71]
[1764169005058,12.96468381,137.01,136.97,0.71]
[1764169005228,12.96468381,137.01,136.96,25.55490653]
[1764169005559,12.96468381,137.01,136.96,29.80490653]
[1764169005735,12.96468381,137.01,136.97,0.71]
[1764169006135,12.96468381,137.02,136.98,7.30033581]
[1764169006360,16.308864,137.03,136.98,7.30033581]
[1764169006542,12.96468381,137.02,136.98,26.26117534]
[1764169006744,12.96468381,137.01,136.98,25.55117534]
[1764169007141,12.96468381,137.02,136.98,25.55117534]
[1764169007337,12.96468381,137.01,136.98,25.55117534]
[1764169007540,12.96468381,137.02,136.98,25.55117534]
[1764169007860,16.308864,137.02,136.98,7.30033581]
[1764169008035,17.028864,137.02,136.97,7.3008688]
[1764169008233,12.96468381,137.01,136.97,7.3008688]
[1764169008549,12.96468381,136.98,136.96,7.30118068]
[1764169008756,12.96468381,136.97,136.96,7.30118068]
[1764169008944,12.96468381,136.97,136.91,0.1]
[1764169009255,3.52,137.0,136.92,7.30331669]
[1764169009256,12.96468381,136.95,136.92,7.30331669]
[1764169010162,12.96468381,136.96,136.92,18.25883727]
[1764169010339,12.96468381,136.97,136.92,18.96883727]
[1764169010532,12.96468381,136.95,136.92,18.25883727]
[1764169010732,12.96468381,136.94,136.92,18.25883727]
[1764169010955,12.96468381,136.94,136.91,10.92406836]
[1764169011536,12.96468381,136.95,136.91,10.92406836]
[1764169011936,12.96468381,136.94,136.91,7.40406836]
[1764169012135,12.96468381,136.95,136.91,18.36017091]
[1764169012551,12.96468381,136.94,136.91,18.36017091]
[1764169012752,12.96468381,136.96,136.91,19.07017091]
[1764169012948,12.96468381,136.97,136.91,19.07017091]
[1764169013156,12.96468381,136.96,136.91,19.07017091]
[1764169013341,12.96468381,136.96,136.91,22.59017091]
[1764169013859,12.96468381,136.96,136.92,0.71]
[1764169014049,12.96468381,136.97,136.92,0.71]
[1764169014241,3.52,137.0,136.93,25.56050536]
[1764169014444,12.96468381,136.96,136.93,25.56050536]
[1764169014846,12.96468381,136.95,136.93,7.30300153]
[1764169015041,12.96468381,136.96,136.93,7.30300153]
[1764169015347,12.96468381,136.96,136.93,25.56050536]
[1764169015555,16.308864,136.98,136.93,25.56050536]
[1764169015858,29.27354781,136.98,136.94,0.71]
[1764169016060,12.96468381,136.95,136.93,25.56050536]
[1764169016245,12.96468381,136.94,136.91,0.1]
[1764169016454,12.96468381,136.93,136.91,0.1]
[1764169016858,12.96468381,136.95,136.91,0.1]
[1764169017066,13.68468381,136.95,136.91,0.1]
[1764169017268,3.52,136.96,136.91,0.1]
[1764169017475,12.96468381,136.95,136.91,0.81]
[1764169017768,27.0600721,136.99,136.91,0.81]
[1764169017769,8.80994492,137.02,136.92,3.5]
[1764169017970,30.45975418,137.21,136.97,0.28432314]
[1764169017971,0.72,137.05,136.97,0.28432314]
[1764169018148,12.96468381,137.01,136.96,3.80432314]
[1764169018351,12.96468381,136.97,136.94,25.55863881]
[1764169018550,12.89446461,136.98,136.94,25.55863881]
[1764169018861,12.89446461,136.97,136.94,25.55863881]
[1764169019170,12.89446461,136.97,136.94,7.30246823]
[1764169019665,17.028864,136.99,136.94,7.30246823]
[1764169019875,12.89446461,136.95,136.91,0.1]
[1764169020050,12.89446461,136.93,136.91,7.40392749]
[1764169020250,12.89446461,136.93,136.91,0.1]
[1764169020440,0.72,136.93,136.91,0.1]
[1764169020654,12.89446461,136.92,136.91,0.1]
[1764169020870,0.72,136.93,136.91,0.1]
[1764169021039,13.61446461,136.93,136.91,0.1]
[1764169021240,12.89446461,136.92,136.91,0.1]
[1764169021443,13.61446461,136.92,136.91,0.1]
[1764169021868,22.42440953,136.92,136.91,0.1]
[1764169022071,16.308864,136.93,136.91,0.1]
[1764169022072,12.89446461,136.93,136.91,0.1]
[1764169022771,3.5,136.98,136.91,4.31]
[1764169022970,0.72,137.05,136.96,12.89446461]
[1764169023171,12.89446461,137.0,136.94,12.89446461]
[1764169023345,12.89446461,136.98,136.93,3.5]
[1764169023550,16.308864,137.01,136.93,3.5]
[1764169023551,12.89446461,136.97,136.93,3.5]
[1764169023745,19.808864,137.01,136.91,16.69318714]
[1764169023746,12.89446461,136.94,136.91,0.1]
[1764169023955,12.89446461,136.92,136.91,0.1]
[1764169024253,20.19799952,136.92,136.91,0.1]
[1764169024457,13.61446461,136.92,136.91,0.1]
[1764169024856,20.91799952,136.92,136.91,0.1]
[1764169025184,13.61446461,136.92,136.91,0.1]
[1764169025474,16.308864,136.9,136.89,0.1]
[1764169025654,29.20332861,136.9,136.89,0.1]
[1764169025973,38.69327353,136.9,136.89,0.1]
[1764169026368,3.5,136.93,136.89,0.1]
[1764169026664,100.0,137.02,136.9,13.57446461]
[1764169026665,3.5,136.96,136.9,13.57446461]
[1764169026874,12.89446461,136.95,136.9,0.68]
[1764169027069,3.5,136.96,136.91,12.89446461]
[1764169027246,7.29938432,137.0,136.93,12.89446461]
[1764169027448,12.89446461,136.98,136.93,12.89446461]
[1764169027649,16.308864,136.98,136.93,12.89446461]
[1764169027850,12.89446461,136.97,136.92,12.89446461]
[1764169028188,13.57446461,136.97,136.92,12.89446461]
[1764169028467,12.89446461,136.97,136.92,12.89446461]
[1764169028675,0.68,136.96,136.9,7.30425458]
[1764169028883,13.57446461,136.96,136.91,12.89446461]
[1764169029249,0.68,136.95,136.91,12.89446461]
[1764169029560,12.89446461,136.94,136.9,7.30425458]
[1764169029763,13.57446461,136.95,136.9,7.30425458]
[1764169029956,12.89446461,136.96,136.91,12.89446461]
[1764169030161,12.89446461,136.97,136.92,12.89446461]
[1764169030361,12.89446461,136.95,136.91,7.30363648]
[1764169030665,29.20332861,136.98,136.93,12.89446461]
[1764169030843,29.20332861,136.98,136.91,7.98363648]
[1764169031046,12.89446461,136.97,136.92,12.89446461]
[1764169031245,24.28931467,136.98,136.93,12.89446461]
[1764169031246,37.18377928,136.98,136.93,12.89446461]
[1764169031750,0.68,137.03,136.97,12.89446461]
[1764169031958,12.89446461,137.02,136.97,12.89446461]
[1764169032355,12.89446461,136.99,136.95,7.30193501]
[1764169032556,8.80994492,136.95,136.9,7.30460189]
[1764169032755,12.89446461,136.93,136.89,7.40494656]
[1764169033257,12.89446461,136.94,136.89,25.66778533]